bitfinex-derivatives/quotes_ETHF0:USTF0_20250604
["timestamp","ask_amount","ask_price","bid_price","bid_amount"]
[1749011452356,0.99164949,2627.4,2627.3,1.36622]
[1749011453863,2.31134949,2627.4,2627.3,1.36622]
[1749011454067,2.30954878,2627.4,2627.1,4.54870809]
[1749011454266,0.98984878,2627.3,2627.2,0.76075]
[1749011457965,0.98806707,2627.3,2627.1,4.54870809]
[1749011458165,0.98806707,2627.2,2627.1,5.30948809]
[1749011458465,0.98794336,2627.2,2627.1,4.54870809]
[1749011458670,0.98794336,2627.2,2627.1,5.30948809]
[1749011459571,0.98756223,2627.2,2627.1,5.30948809]
[1749011461272,1.38328,2627.5,2627.3,0.76072]
[1749011461471,0.98761345,2627.4,2627.1,4.54870809]
[1749011461661,0.98761345,2627.3,2627.2,0.76075]
[1749011462286,1.74835345,2627.3,2627.1,5.30947809]
[1749011462573,0.98761345,2627.2,2627.1,5.30947809]
[1749011462766,1.74836345,2627.2,2627.1,0.00570809]
[1749011462962,3.05816345,2627.2,2627.1,0.00570809]
[1749011467674,3.05718686,2627.2,2627.1,0.00570809]
[1749011468880,0.76087,2626.8,2626.7,0.6417]
[1749011469479,0.76091,2626.7,2626.5,4.54]
[1749011469783,0.76089,2626.8,2626.6,0.76093]
[1749011470280,0.76087,2626.8,2626.7,0.7609]
[1749011470482,1.74677341,2626.8,2626.7,0.7609]
[1749011470876,0.7609,2626.7,2626.6,0.76091]
[1749011471073,0.7609,2626.7,2626.5,0.6278]
[1749011471074,1.96939,2626.8,2626.7,0.7609]
[1749011471280,2.95529323,2626.8,2626.7,0.7609]
[1749011471781,2.95529323,2626.8,2626.5,0.6278]
[1749011471984,1.2085,2626.8,2626.6,0.76092]
[1749011472179,0.7609,2626.7,2626.6,0.76092]
[1749011472487,0.9859732,2626.7,2626.6,0.76092]
[1749011472681,1.7468932,2626.7,2626.5,1.38874]
[1749011472880,1.74668672,2626.6,2626.5,0.6278]
[1749011473080,2.95518672,2626.6,2626.5,0.6278]
[1749011473578,0.76096,2626.5,2626.4,0.00570809]
[1749011473784,3.69381672,2626.5,2626.4,0.00570809]
[1749011474486,3.69381672,2626.5,2626.4,0.76669809]
[1749011474785,3.69377106,2626.5,2626.4,0.00570809]
[1749011474985,0.98571106,2626.5,2626.4,0.76669809]
[1749011476188,3.2078,2626.7,2626.6,0.76093]
[1749011476391,0.98585379,2626.7,2626.6,0.76093]
[1749011476894,0.00570809,2627.0,2626.9,0.76084]
[1749011477184,0.99210786,2627.0,2626.9,0.76084]
[1749011477783,1.75293786,2627.0,2626.8,0.76086]
[1749011477978,0.98639977,2626.9,2626.8,0.76086]
[1749011481292,0.00570809,2627.0,2626.9,0.76084]
[1749011481488,0.76651809,2627.0,2626.9,0.76084]
[1749011481794,0.76651809,2627.0,2626.8,0.76086]
[1749011482293,0.76653809,2627.0,2626.9,0.06704602]
[1749011483796,1.75538923,2627.0,2626.9,0.06704602]
[1749011484096,0.99455923,2627.0,2626.9,0.82788602]
[1749011485099,1.75536923,2627.0,2626.9,0.82788602]
[1749011485301,1.75536923,2627.0,2626.9,0.06704602]
[1749011486499,1.7562262,2627.0,2626.9,0.06704602]
[1749011490498,0.76651809,2627.0,2626.9,0.06704602]
[1749011490799,1.75703127,2627.0,2626.9,0.06704602]
[1749011490997,4.96483127,2627.0,2626.9,0.06704602]
[1749011491400,4.96483127,2627.0,2626.4,0.00570809]
[1749011491401,0.76096,2626.5,2626.4,0.00570809]
[1749011491702,1.75147318,2626.5,2626.4,0.00570809]
[1749011491901,1.75147318,2626.5,2626.4,0.65010809]
[1749011493204,1.75147318,2626.5,2626.4,0.00570809]
[1749011493702,2.39377318,2626.5,2626.4,0.00570809]
[1749011494407,2.39377318,2626.5,2626.4,0.07275411]
[1749011496712,3.61187318,2626.5,2626.4,0.07275411]
[1749011498108,8.61187318,2626.5,2626.4,0.07275411]
[1749011498609,3.61187318,2626.5,2626.4,0.07275411]
[1749011498808,8.14887318,2626.5,2626.4,0.07275411]
[1749011499006,2.39377318,2626.5,2626.4,0.07275411]
[1749011499402,1.75147318,2626.5,2626.4,0.07275411]
[1749011499599,0.99051318,2626.5,2626.4,0.83374411]
[1749011500003,0.99051318,2626.5,2626.4,5.83374411]
[1749011500212,0.99051318,2626.5,2626.4,9.04154411]
[1749011500403,0.99051318,2626.5,2626.4,27.83904411]
[1749011502318,0.00570809,2627.0,2626.9,0.76084]
[1749011502615,1.00114556,2627.0,2626.9,0.76084]
[1749011502916,1.00114556,2627.0,2626.8,0.76085]
[1749011503117,0.99543747,2626.9,2626.8,0.76085]
[1749011503914,1.75627747,2626.9,2626.7,1.38508]
[1749011504109,0.99543747,2626.8,2626.7,0.6242]
[1749011504318,0.99576322,2626.8,2626.7,0.6242]
[1749011505008,3.96865,2626.9,2626.7,1.38508]
[1749011505221,5.30545,2626.9,2626.7,0.7609]
[1749011505419,0.76087,2626.8,2626.6,0.76091]
[1749011505611,5.30545,2626.9,2626.7,0.7609]
[1749011505811,1.3368,2626.8,2626.5,0.6358]
[1749011506118,0.99573213,2626.7,2626.6,0.76093]
[1749011507818,1.75663213,2626.7,2626.5,1.39674]
[1749011508010,2.26123213,2626.6,2626.5,1.39674]
[1749011508217,0.99573213,2626.6,2626.5,1.39674]
[1749011508821,0.9958415,2626.8,2626.7,0.7609]
[1749011509022,0.99584113,2626.8,2626.7,0.7609]
[1749011510522,0.99574534,2626.8,2626.7,0.7609]
[1749011512622,2.32124534,2626.8,2626.7,0.7609]
[1749011513322,2.94624534,2626.8,2626.7,0.7609]
[1749011514616,2.94619199,2626.8,2626.7,0.7609]
[1749011515321,3.70706199,2626.8,2626.7,0.7609]
[1749011516322,1.75656199,2626.8,2626.7,0.7609]
[1749011517526,0.99569199,2626.8,2626.7,0.7609]
[1749011517720,1.75656199,2626.8,2626.7,0.7609]
[1749011518723,0.99596487,2626.8,2626.7,0.7609]
[1749011518922,1.75683487,2626.8,2626.7,0.7609]
[1749011519129,0.99596487,2626.8,2626.7,0.7609]
[1749011520230,1.75683487,2626.8,2626.7,0.7609]
[1749011521228,1.75691774,2626.8,2626.7,0.7609]
[1749011521528,1.75691815,2626.8,2626.7,0.7609]
[1749011521726,0.99604815,2626.8,2626.6,0.82795602]
[1749011521924,0.99604815,2626.7,2626.6,0.82795602]
[1749011522628,0.99608918,2626.8,2626.6,0.06704602]
[1749011522823,0.99608918,2626.7,2626.6,0.82797602]
[1749011525234,0.99637037,2626.7,2626.6,0.82797602]
[1749011525635,1.75727037,2626.7,2626.6,0.82797602]
[1749011526037,1.75727037,2626.7,2626.6,0.06704602]
[1749011527041,3.75587037,2626.7,2626.6,0.06704602]
[1749011529232,3.75723394,2626.7,2626.6,0.06704602]
[1749011531742,0.99773394,2626.7,2626.6,0.82797602]
[1749011533233,0.76652809,2627.0,2626.8,0.76087]
[1749011533439,0.99708386,2626.9,2626.7,0.76088]
[1749011533643,0.99708386,2626.8,2626.7,0.76088]
[1749011534245,0.99708386,2626.8,2626.6,0.82794602]
[1749011534443,0.99708386,2626.7,2626.6,0.82794602]
[1749011536938,1.75798386,2626.7,2626.6,0.06704602]
[1749011537135,1.9735,2626.7,2626.6,0.06704602]
[1749011537330,2.96762237,2626.7,2626.6,0.06704602]
[1749011541244,2.96764061,2626.7,2626.6,0.06704602]
[1749011541547,2.96765535,2626.7,2626.6,0.06704602]
[1749011543448,1.9735,2626.7,2626.6,0.06704602]
[1749011543753,0.76113,2626.0,2625.8,0.76115]
[1749011543947,0.76113,2626.0,2625.8,0.6582]
[1749011543948,0.9939101,2625.9,2625.8,0.6582]
[1749011544250,1.7550401,2625.9,2625.8,1.41936]
[1749011544444,0.99103146,2625.9,2625.8,1.41936]
[1749011544941,0.76116,2625.8,2625.7,3.96898]
[1749011545147,0.99103146,2625.8,2625.7,3.96898]
[1749011545339,0.99057297,2625.8,2625.7,3.2078]
[1749011545538,0.99057297,2625.8,2625.7,3.96898]
[1749011546546,2.22997297,2625.8,2625.6,0.76690809]
[1749011546748,0.99057297,2625.7,2625.6,0.76692809]
[1749011547447,1.2394,2625.8,2625.7,0.76119]
[1749011547649,2.99056583,2625.8,2625.6,0.76691809]
[1749011547847,2.36659583,2625.7,2625.6,0.76691809]
[1749011548048,1.60540583,2625.7,2625.6,0.76691809]
[1749011548242,2.36659583,2625.7,2625.6,0.00570809]
[1749011548443,3.69859583,2625.7,2625.6,0.00570809]
[1749011549254,1.9474,2625.7,2625.6,0.76692809]
[1749011549544,3.69795865,2625.7,2625.6,8.09e-06]
[1749011549747,8.23195865,2625.7,2625.6,8.09e-06]
[1749011551451,2.93676865,2625.7,2625.6,8.09e-06]
[1749011551751,3.69795865,2625.7,2625.6,8.09e-06]
[1749011553254,3.69675744,2625.7,2625.6,8.09e-06]
[1749011554247,3.69675744,2625.7,2625.6,0.06705411]
[1749011559547,2.93556744,2625.7,2625.1,0.6667]
[1749011559748,0.76133,2625.2,2625.1,0.6667]
[1749011559957,1.74949744,2625.2,2625.1,0.6667]
[1749011560558,3.69619744,2625.2,2625.1,0.6667]
[1749011561363,0.98646427,2625.2,2625.1,1.42806]
[1749011561752,1.74779427,2625.2,2625.1,1.42806]
[1749011561959,0.76139,2625.0,2624.9,0.00570809]
[1749011562254,3.96919,2625.0,2624.9,0.00570809]
[1749011562461,4.95565427,2625.0,2624.9,0.65950809]
[1749011563159,0.98646427,2625.0,2624.9,1.42092809]
[1749011563366,1.74785427,2625.0,2624.9,1.42092809]
[1749011563549,1.74785427,2625.0,2624.9,0.65950809]
[1749011566653,1.7394708,2625.0,2624.9,0.65950809]
[1749011569366,0.76139,2625.0,2624.9,0.72655411]
[1749011570563,0.76139,2625.0,2624.9,0.07275411]
[1749011570756,2.66649,2625.0,2624.9,0.07275411]
[1749011571562,3.29959,2625.0,2624.9,0.07275411]
[1749011572760,7.83359,2625.0,2624.9,0.07275411]
[1749011574065,1.39449,2625.0,2624.9,0.07275411]
[1749011574261,0.76139,2625.0,2624.9,0.83417411]
[1749011574762,0.76139,2625.0,2624.9,0.07275411]
[1749011575763,0.76139,2625.0,2624.9,0.83417411]
[1749011575963,0.76139,2625.0,2624.9,0.07275411]
[1749011577471,2.01809,2625.0,2624.9,0.07275411]
[1749011577669,2.67039,2625.0,2624.9,0.07275411]
[1749011578670,3.65865051,2625.0,2624.9,0.07275411]
[1749011580775,3.65932297,2625.0,2624.9,0.07275411]
[1749011583375,1.75032297,2625.0,2624.9,0.07275411]
[1749011583869,1.75084539,2625.0,2624.9,0.07275411]
[1749011584268,1.75084539,2625.0,2624.9,0.68075411]
[1749011586972,1.75084539,2625.0,2624.9,0.07275411]
[1749011587180,8.19004539,2625.0,2624.9,0.07275411]
[1749011587385,8.80574539,2625.0,2624.9,0.07275411]
[1749011588477,0.76148,2624.7,2624.6,0.33455411]
[1749011588780,4.95873539,2624.7,2624.6,0.33455411]
[1749011589372,4.19725539,2624.7,2624.0,4.533]
[1749011589576,0.76155,2624.5,2624.4,0.00380538]
[1749011589884,0.98945539,2624.5,2624.4,0.76536538]
[1749011590475,1.75099539,2624.5,2624.4,0.00380538]
[1749011590774,6.28399539,2624.5,2624.4,0.00380538]
[1749011590975,1.75099539,2624.5,2624.4,0.00380538]
[1749011591677,1.75908213,2624.5,2624.4,0.00380538]
[1749011593578,3.05128213,2624.5,2624.4,0.00380538]
[1749011594181,3.70688213,2624.5,2624.4,0.00380538]
[1749011599685,3.70474147,2624.5,2624.4,0.00380538]
[1749011599885,3.70474147,2624.5,2624.4,0.0708514]
[1749011603084,1.75694147,2624.5,2624.4,0.0708514]
[1749011603778,1.7567072,2624.5,2624.4,0.0708514]
[1749011604383,0.9951672,2624.5,2624.4,0.8324114]
[1749011604579,0.9951672,2624.5,2624.4,5.8324114]
[1749011604790,0.9951672,2624.5,2624.4,7.1396114]
[1749011607684,0.76148,2624.7,2624.5,0.76153]
[1749011607890,0.99590756,2624.6,2624.5,0.76153]
[1749011610786,0.76154,2624.5,2624.4,1.3780514]
[1749011610987,0.99590756,2624.5,2624.4,2.1396114]
[1749011611587,5.11135,2625.0,2624.5,0.76152]
[1749011611788,0.9973306,2624.9,2624.5,0.76152]
[1749011611987,0.76151,2624.6,2624.5,0.76154]
[1749011612287,1.7588416,2624.7,2624.6,0.76151]
[1749011612589,0.9973516,2624.7,2624.6,0.76151]
[1749011614197,1.7588316,2624.7,2624.6,0.76151]
[1749011615293,0.9973516,2624.7,2624.4,0.76535538]
[1749011615495,0.76154,2624.5,2624.4,0.76535538]
[1749011615686,1.75948125,2624.5,2624.4,0.00380538]
[1749011616688,0.99794125,2624.5,2624.4,0.76536538]
[1749011616884,1.75948125,2624.5,2624.4,0.76536538]
[1749011617891,0.99794125,2624.5,2624.4,0.76536538]
[1749011618087,0.99802192,2624.5,2624.4,0.76536538]
[1749011618396,1.75956192,2624.5,2624.4,0.00380538]
[1749011618696,2.38216192,2624.5,2624.4,0.00380538]
[1749011618896,1.62062192,2624.5,2624.4,0.76536538]
[1749011619486,0.6226,2624.5,2624.4,0.76536538]
[1749011619694,1.62043152,2624.5,2624.4,0.76536538]
[1749011619898,2.38197152,2624.5,2624.4,0.00380538]
[1749011620394,2.38197152,2624.5,2624.4,0.76536538]
[1749011621290,2.38197152,2624.5,2624.4,0.00380538]
[1749011623593,2.38201051,2624.5,2624.4,0.00380538]
[1749011624493,0.99787051,2624.5,2624.4,0.76536538]
[1749011625994,1.75941051,2624.5,2624.4,0.00380538]
[1749011626597,0.99787051,2624.5,2624.4,0.76536538]
[1749011627095,1.75941051,2624.5,2624.4,0.76536538]
[1749011627601,1.75969002,2624.5,2624.4,0.76536538]
[1749011627804,1.75969002,2624.5,2624.4,0.00380538]
[1749011629202,1.75969002,2624.5,2624.4,0.0708514]
[1749011630999,0.99815002,2624.5,2624.4,0.8324114]
[1749011631708,0.76153,2624.6,2624.5,0.76154]
[1749011632009,0.99924287,2624.6,2624.5,0.76154]
[1749011632311,0.99924287,2624.6,2624.5,1.37044]
[1749011632511,0.99924287,2624.6,2624.5,3.28544]
[1749011635117,0.5741263,2624.6,2624.5,3.28544]
[1749011635302,0.5741263,2624.6,2624.5,8.28544]
[1749011635503,3.2078,2625.1,2625.0,0.76139]
[1749011636614,0.6179,2625.3,2625.2,0.76133]
[1749011637213,1.3792,2625.3,2625.1,0.76134]
[1749011637418,0.6179,2625.3,2625.2,0.76133]
[1749011638714,1.3792,2625.3,2625.2,0.76133]
[1749011639415,0.6179,2625.3,2625.2,0.76133]
[1749011640216,0.00570809,2625.4,2625.3,0.7613]
[1749011642521,0.76697809,2625.4,2625.3,0.7613]
[1749011642721,0.00570809,2625.4,2625.3,0.7613]
[1749011642916,0.76697809,2625.4,2625.3,0.7613]
[1749011643115,0.00570809,2625.4,2625.3,0.7613]
[1749011644919,8.09e-06,2625.4,2625.3,0.7613]
[1749011645113,8.09e-06,2625.4,2625.3,7.5962]
[1749011645415,8.09e-06,2625.4,2625.3,7.66324602]
[1749011650324,8.09e-06,2625.4,2625.3,5.97224602]
[1749011651930,8.09e-06,2625.4,2625.3,5.36034602]
[1749011652226,0.76127809,2625.4,2625.3,4.59904602]
[1749011652429,1.75482218,2625.4,2625.3,4.59904602]
[1749011652628,0.99355218,2625.4,2625.3,5.36034602]
[1749011653225,2.28455218,2625.4,2625.3,5.36034602]
[1749011654032,3.04582218,2625.4,2625.3,5.36034602]
[1749011654231,3.04591533,2625.4,2625.3,5.36034602]
[1749011654432,3.04591533,2625.4,2625.3,4.59904602]
[1749011655026,2.28464533,2625.4,2625.3,5.36034602]
[1749011655434,3.04591533,2625.4,2625.3,4.59904602]
[1749011657533,3.04591533,2625.4,2625.3,0.06704602]
[1749011658133,3.04685946,2625.4,2625.3,0.06704602]
[1749011659136,2.28558946,2625.4,2625.3,0.82834602]
[1749011659730,2.89928946,2625.4,2625.3,0.82834602]
[1749011662241,2.90009259,2625.4,2625.3,0.82834602]
[1749011663829,1.90470809,2625.4,2625.3,0.82834602]
[1749011664032,2.90072891,2625.4,2625.3,0.82834602]
[1749011666241,2.90145171,2625.4,2625.3,0.82834602]
[1749011667636,0.99675171,2625.4,2625.3,0.82834602]
[1749011667838,8.09e-06,2625.4,2625.3,0.82834602]
[1749011668036,8.09e-06,2625.4,2625.3,2.71744602]
[1749011670242,0.99753336,2625.4,2625.3,2.71744602]
[1749011670639,8.09e-06,2625.4,2625.3,2.71744602]
[1749011671242,0.99753336,2625.4,2625.3,2.71744602]
[1749011671442,8.09e-06,2625.4,2625.3,2.71744602]
[1749011672338,0.99779362,2625.4,2625.3,2.71744602]
[1749011672937,8.09e-06,2625.4,2625.3,2.71744602]
[1749011673853,0.99779362,2625.4,2625.3,2.71744602]
[1749011674240,8.09e-06,2625.4,2625.3,2.71744602]
[1749011674641,0.99800646,2625.4,2625.3,2.71744602]
[1749011675045,0.6286,2626.0,2625.6,0.76122]
[1749011675245,0.99827759,2625.9,2625.8,0.76116]
[1749011678457,0.6286,2626.0,2625.9,0.76113]
[1749011685656,0.6286,2626.0,2625.6,3.2078]
[1749011685854,0.76119,2625.7,2625.6,3.2078]
[1749011686061,3.2078,2625.8,2625.4,0.76127]
[1749011686259,0.76124,2625.6,2625.4,0.76127]
[1749011686562,0.666,2625.5,2625.4,0.76127]
[1749011687168,1.66944663,2625.5,2625.4,0.76127]
[1749011687363,1.00344663,2625.5,2625.4,0.76127]
[1749011688963,1.00344663,2625.5,2625.4,18.23727]
[1749011689672,1.00344663,2625.5,2625.4,0.76127]
[1749011690858,1.64304663,2625.5,2625.4,0.76127]
[1749011691059,1.64304663,2625.5,2625.4,0.06704602]
[1749011691261,1.64304663,2625.5,2625.4,0.82831602]
[1749011691661,2.40429663,2625.5,2625.4,0.06704602]
[1749011692868,5.61209663,2625.5,2625.4,0.06704602]
[1749011694166,0.6396,2625.5,2625.4,0.06704602]
[1749011694362,2.4034963,2625.5,2625.4,0.06704602]
[1749011695065,5.6112963,2625.5,2625.4,0.06704602]
[1749011695273,5.6112312,2625.5,2625.4,0.06704602]
[1749011696277,2.4034312,2625.5,2625.4,0.06704602]
[1749011696971,5.6112312,2625.5,2625.4,0.06704602]
[1749011698371,1.6421812,2625.5,2625.4,0.82831602]
[1749011698672,1.6421812,2625.5,2625.4,0.06704602]
[1749011698673,2.4034312,2625.5,2625.4,0.06704602]
[1749011699376,5.6112312,2625.5,2625.4,0.06704602]
[1749011700567,4.8499812,2625.5,2625.4,0.82831602]
[1749011700871,2.4034312,2625.5,2625.4,0.82831602]
[1749011701072,1.9126,2625.5,2625.4,0.82831602]
[1749011701275,2.91488189,2625.5,2625.4,0.06704602]
[1749011701474,3.67613189,2625.5,2625.4,0.06704602]
[1749011702968,6.88393189,2625.5,2625.4,0.06704602]
[1749011703174,11.88393189,2625.5,2625.4,0.06704602]
[1749011704674,11.88304808,2625.5,2625.4,0.06704602]
[1749011704981,1.90327,2625.3,2624.7,0.76146]
[1749011705174,0.76144,2624.9,2624.7,0.76146]
[1749011705378,2.39724808,2624.8,2624.6,0.76149]
[1749011705676,1.00139808,2624.7,2624.6,0.76149]
[1749011705980,2.26309808,2624.7,2624.6,0.76149]
[1749011707179,3.02457808,2624.7,2624.6,0.76149]
[1749011707377,2.26309808,2624.7,2624.5,0.76154]
[1749011707585,3.02460808,2624.6,2624.5,0.76154]
[1749011707878,0.76154,2624.5,2624.4,0.60910538]
[1749011708076,1.76293808,2624.5,2624.4,0.60910538]
[1749011708275,1.76293808,2624.5,2624.4,1.37067538]
[1749011708473,1.76293808,2624.5,2624.4,0.60910538]
[1749011708679,1.00139808,2624.5,2624.4,1.37067538]
[1749011710682,1.00139808,2624.5,2624.4,2.63447538]
[1749011710883,0.00570809,2624.7,2624.6,0.76151]
[1749011711371,1.00498267,2624.7,2624.6,0.76151]
[1749011712577,0.00570809,2624.7,2624.6,8.96931]
[1749011712781,8.09e-06,2624.7,2624.6,8.96931]
[1749011712976,3.2078,2625.3,2625.2,0.76133]
[1749011713284,4.20754285,2625.3,2625.2,0.76133]
[1749011716386,4.20754285,2625.3,2625.1,0.76135]
[1749011716688,3.2078,2625.3,2625.2,0.76133]
[1749011716888,4.20831676,2625.3,2625.2,0.76133]
[1749011719092,0.76135,2625.2,2625.0,4.531]
[1749011719394,1.00051676,2625.1,2625.0,5.29239]
[1749011721679,1.00051676,2625.1,2625.0,0.76139]
[1749011722477,1.76187676,2625.1,2624.9,0.6342]
[1749011722683,1.0014967,2625.0,2624.9,1.39562]
[1749011724193,1.41863,2625.2,2625.1,0.76136]
[1749011724391,2.42017166,2625.2,2625.1,0.76136]
[1749011724702,2.42020258,2625.2,2625.1,0.76136]
[1749011725389,1.65887258,2625.2,2625.1,0.76136]
[1749011726797,2.42020258,2625.2,2625.1,0.76136]
[1749011727295,1.65887258,2625.2,2625.1,0.76136]
[1749011728693,0.6573,2625.2,2625.1,0.76136]
[1749011728894,1.6587787,2625.2,2625.1,0.76136]
[1749011729591,1.0014787,2625.2,2625.1,0.76136]
[1749011732798,0.00570809,2625.5,2625.4,0.76127]
[1749011732999,1.00732052,2625.5,2625.4,0.76127]
[1749011737003,1.00721049,2625.5,2625.4,0.76127]
[1749011740911,1.00888187,2625.5,2625.4,0.76127]
[1749011741114,1.77013187,2625.5,2625.4,0.76127]
[1749011742506,1.00888187,2625.5,2625.4,0.76127]
[1749011742708,1.77013187,2625.5,2625.4,0.76127]
[1749011743610,1.00888187,2625.5,2625.4,0.76127]
[1749011744512,0.76127,2625.4,2625.3,18.90489]
[1749011744707,1.00317378,2625.4,2625.3,18.90489]
[1749011745008,1.00410811,2625.4,2625.3,18.90489]
[1749011745216,1.76537811,2625.4,2625.3,1.42689]
[1749011745419,1.00410811,2625.4,2625.3,1.42689]
[1749011749020,0.00570809,2625.5,2625.3,1.42689]
[1749011749021,0.00570809,2625.5,2625.4,0.76127]
[1749011749222,1.00976357,2625.5,2625.4,0.76127]
[1749011749721,1.00976357,2625.5,2625.3,0.6656]
[1749011749919,0.00570809,2625.5,2625.4,0.76127]
[1749011750111,1.00970643,2625.5,2625.4,0.76127]
[1749011752925,1.00973818,2625.5,2625.4,0.76127]
[1749011757124,1.01007402,2625.5,2625.4,0.76127]
[1749011758530,2.25067402,2625.5,2625.4,0.76127]
[1749011760732,2.25098434,2625.5,2625.4,0.76127]
[1749011763639,2.25084793,2625.5,2625.4,0.76127]
[1749011764222,2.25084793,2625.5,2625.3,0.06704602]
[1749011764431,2.99100984,2625.4,2625.3,0.06704602]
[1749011765030,0.7613,2625.3,2625.2,1.17892]
[1749011765238,4.23663984,2625.3,2625.2,1.17892]
[1749011765430,3.47533984,2625.3,2625.2,1.17892]
[1749011765737,3.47533984,2625.3,2625.2,1.17893]
[1749011766037,4.23663984,2625.3,2625.2,0.4176]
[1749011766528,1.00453984,2625.3,2625.2,1.17893]
[1749011767632,3.97475809,2625.5,2625.3,0.76128]
[1749011767840,1.00396923,2625.4,2625.3,0.76128]
[1749011768845,1.00396923,2625.4,2625.3,3.96908]
[1749011769340,0.93693131,2625.4,2625.3,13.49808]
[1749011769639,0.93693131,2625.4,2625.3,14.73108]
[1749011771430,0.00570809,2625.5,2625.4,0.76127]
[1749011771637,0.00570809,2625.5,2625.4,2.59987]
[1749011772040,0.00570809,2625.5,2625.4,2.66691602]
[1749011772340,0.00570809,2625.5,2625.4,7.66691602]
[1749011773641,8.09e-06,2625.5,2625.4,7.66691602]
[1749011776744,3.2078,2626.5,2625.4,7.66691602]
[1749011776950,1.2277,2627.7,2626.4,3.2078]
[1749011777143,4.5359,2627.6,2627.1,3.2078]
[1749011777453,3.2078,2627.2,2627.1,4.526]
[1749011777642,3.96855,2627.2,2627.1,4.526]
[1749011777946,3.96855,2627.2,2626.9,0.00570809]
[1749011777947,8.2078,2627.2,2626.9,0.00570809]
[1749011778139,3.31658,2627.1,2626.9,0.00570809]
[1749011778342,1.3281,2627.0,2626.9,0.00570809]
[1749011780443,1.3281,2627.0,2626.9,0.76654809]
[1749011780937,1.3281,2627.0,2626.9,0.00570809]
[1749011781442,2.3042086,2627.0,2626.9,0.76654809]
[1749011783250,2.30419738,2627.0,2626.9,0.76654809]
[1749011783936,2.30419738,2627.0,2626.9,3.97434809]
[1749011784841,1.3281,2627.0,2626.9,3.97434809]
[1749011785942,1.3281,2627.0,2626.9,21.53234809]
[1749011786438,2.30420201,2627.0,2626.9,21.53234809]
[1749011786950,2.30420201,2627.0,2626.9,18.32454809]
[1749011787437,0.97610201,2627.0,2626.9,18.32454809]
[1749011788449,1.2277,2627.1,2627.0,0.76081]
[1749011788650,1.2277,2627.1,2627.0,5.28581]
[1749011794455,1.2277,2627.1,2627.0,5.35285602]
[1749011795450,1.98848,2627.1,2627.0,0.06704602]
[1749011795752,2.20424243,2627.1,2627.0,0.82785602]
[1749011796053,2.96502243,2627.1,2627.0,0.06704602]
[1749011796854,2.96502243,2627.1,2627.0,0.82785602]
[1749011797847,2.96502243,2627.1,2627.0,0.06704602]
[1749011800651,7.96502243,2627.1,2627.0,0.06704602]
[1749011803656,7.96674002,2627.1,2627.0,0.06704602]
[1749011808061,7.96869252,2627.1,2627.0,0.06704602]
[1749011808659,7.96869252,2627.1,2627.0,0.47134602]
[1749011809456,2.96869252,2627.1,2627.0,0.47134602]
[1749011811765,6.17607621,2627.1,2627.0,0.47134602]
[1749011815960,6.17357709,2627.1,2627.0,0.47134602]
[1749011820168,6.17357067,2627.1,2627.0,0.47134602]
[1749011820369,16.86976067,2627.1,2626.4,0.6176]
[1749011820562,0.76096,2626.5,2626.4,0.6176]
[1749011820767,1.73825067,2626.5,2626.4,0.6176]
[1749011821472,1.73825067,2626.5,2626.4,1.37858]
[1749011821673,1.73825067,2626.5,2626.4,0.6176]
[1749011822378,0.76101,2626.3,2626.2,0.00570809]
[1749011822581,1.74346409,2626.3,2626.2,0.00570809]
[1749011823086,2.38536409,2626.3,2626.2,0.00570809]
[1749011823482,7.38536409,2626.3,2626.2,8.09e-06]
[1749011826280,6.40291,2626.3,2626.2,8.09e-06]
[1749011826479,7.38209732,2626.3,2626.2,8.09e-06]
[1749011828783,1.74019732,2626.3,2626.2,8.09e-06]
[1749011830381,0.97918732,2626.3,2626.2,8.09e-06]
[1749011830578,0.97918732,2626.3,2626.2,1.99134809]
[1749011832683,0.97918732,2626.3,2626.2,6.99134809]
[1749011833480,3.2078,2626.8,2626.7,0.7609]
[1749011833790,3.2078,2626.8,2626.6,0.7609]
[1749011833992,3.2078,2626.8,2626.7,2.6421]
[1749011835297,3.2078,2627.3,2627.2,0.76075]
[1749011836887,0.00570809,2627.4,2627.3,0.76072]
[1749011837293,0.76641809,2627.4,2627.2,2.03824]
[1749011837492,0.76641809,2627.4,2627.3,0.6316]
[1749011838295,0.00570809,2627.4,2627.3,1.39232]
[1749011838495,0.00570809,2627.4,2627.3,2.66982]
[1749011840496,0.00570809,2627.4,2627.3,1.9091]
[1749011843104,0.76640809,2627.4,2627.3,1.9091]
[1749011844802,0.76640809,2627.4,2627.3,0.6316]
[1749011845405,0.00570809,2627.4,2627.3,1.39232]
[1749011845604,0.97885551,2627.4,2627.3,1.39232]
[1749011845804,0.97885551,2627.4,2627.3,2.65672]
[1749011845999,0.00570809,2627.4,2627.3,15.39952]
[1749011847101,0.76640809,2627.4,2627.3,3.8394]
[1749011847304,0.76640809,2627.4,2627.3,0.6316]
[1749011849102,0.76072,2627.3,2627.2,0.06704602]
[1749011849499,0.76072,2627.3,2627.2,0.82779602]
[1749011849701,0.76641809,2627.4,2627.2,0.82779602]
[1749011850304,0.76072,2627.3,2627.2,0.06704602]
[1749011850898,1.73353037,2627.3,2627.2,0.06704602]
[1749011852098,1.73360525,2627.3,2627.2,0.06704602]
[1749011852404,0.97288525,2627.3,2627.2,0.82779602]
[1749011853811,0.00570809,2627.4,2627.3,0.76072]
[1749011854307,0.00570809,2627.4,2627.3,32.32942]
[1749011854504,0.00570809,2627.4,2627.3,0.76072]
[1749011854700,0.00570809,2627.4,2627.3,22.82672]
[1749011857911,0.00570809,2627.4,2627.3,26.03452]
[1749011859108,0.00570809,2627.4,2627.3,31.03452]
[1749011859315,0.00570809,2627.4,2627.3,32.35932]
[1749011860416,0.00570809,2627.4,2627.3,3.96852]
[1749011860615,0.00570809,2627.4,2627.3,26.03552]
[1749011863716,0.76640809,2627.4,2627.3,3.2078]
[1749011864019,0.76072,2627.3,2627.2,0.06704602]
[1749011864215,2.64822,2627.3,2627.2,0.82779602]
[1749011864412,1.8875,2627.3,2627.2,0.82779602]
[1749011866720,2.86582314,2627.3,2627.2,0.82779602]
[1749011867018,3.62654314,2627.3,2627.2,0.06704602]
[1749011873931,3.62654314,2627.3,2627.2,0.82779602]
[1749011874226,0.97832314,2627.3,2627.2,0.82779602]
[1749011874529,0.00570809,2627.4,2627.2,0.82779602]
[1749011874530,0.00570809,2627.4,2627.3,0.76072]
[1749011874722,0.99091072,2627.4,2627.3,0.76072]
[1749011875322,0.99091072,2627.4,2627.2,0.06704602]
[1749011875523,1.74592263,2627.3,2627.2,4.63004602]
[1749011875729,0.98520263,2627.3,2627.2,22.90779602]
[1749011878333,0.76642809,2627.4,2627.2,22.90779602]
[1749011878519,1.74590159,2627.3,2627.2,22.90779602]